[Event "*** SCC Grand Prix: Titled Tuesday Blitz"]
[Site "Chess.com"]
[Date "2020.08.25"]
[Round "6"]
[White "BigAl"]
[Black "Jungle_Jaguar"]
[Result "1-0"]
[WhiteElo "2480"]
[BlackElo "2625"]
[TimeControl "180+1"]
[EndTime "11:06:39 PDT"]
[Termination "BigAl won by resignation"]

1. e4 {[%clk 0:03:00.9]} 1... e5 {[%clk 0:02:59.6]} 2. Bc4 {[%clk 0:03:00.4]}
2... Nc6 {[%clk 0:02:53.6]} 3. d3 {[%clk 0:03:00.7]} 3... Nf6 {[%clk 0:02:49.2]}
4. Nf3 {[%clk 0:03:01.1]} 4... Bc5 {[%clk 0:02:47.6]} 5. c3 {[%clk 0:03:01]}
5... d6 {[%clk 0:02:46.3]} 6. Bb3 {[%clk 0:03:01.5]} 6... a6 {[%clk 0:02:46.4]}
7. Nbd2 {[%clk 0:03:01.8]} 7... Ba7 {[%clk 0:02:46.4]} 8. h3 {[%clk 0:03:02.1]}
8... O-O {[%clk 0:02:46.5]} 9. Nf1 {[%clk 0:03:02.2]} 9... h6 {[%clk 0:02:46.4]}
10. g4 {[%clk 0:03:02.1]} 10... d5 {[%clk 0:02:32.7]} 11. Qe2 {[%clk 0:03:01.6]}
11... dxe4 {[%clk 0:02:30.1]} 12. dxe4 {[%clk 0:03:01.2]} 12... Nd7 {[%clk
0:02:25.6]} 13. Ng3 {[%clk 0:02:56]} 13... Nc5 {[%clk 0:02:25.4]} 14. Bc2 {[%clk
0:02:56.4]} 14... Be6 {[%clk 0:02:25]} 15. b4 {[%clk 0:02:51.5]} 15... Nd7
{[%clk 0:02:20.3]} 16. g5 {[%clk 0:02:43.2]} 16... b5 {[%clk 0:02:05.4]} 17. Bb3
{[%clk 0:02:28.9]} 17... a5 {[%clk 0:01:14.9]} 18. gxh6 {[%clk 0:02:21.5]} 18...
Bxb3 {[%clk 0:01:14.1]} 19. hxg7 {[%clk 0:02:17.1]} 19... Bc4 {[%clk 0:01:14.3]}
20. gxf8=Q+ {[%clk 0:02:15.6]} 20... Qxf8 {[%clk 0:01:15.2]} 21. Qd2 {[%clk
0:02:15]} 21... Rd8 {[%clk 0:01:09.4]} 22. Nf5 {[%clk 0:02:10.8]} 22... Kh8
{[%clk 0:00:49.3]} 23. Qg5 {[%clk 0:01:49.6]} 23... Qg8 {[%clk 0:00:49.6]} 24.
Qh4+ {[%clk 0:01:39.3]} 24... Qh7 {[%clk 0:00:49.4]} 25. Bh6 {[%clk 0:01:35]}
25... axb4 {[%clk 0:00:38.9]} 26. Rg1 {[%clk 0:01:27.4]} 26... Nc5 {[%clk
0:00:19.5]} 27. Qf6+ {[%clk 0:01:25.3]} 1-0

[Event "*** SCC Grand Prix: Titled Tuesday Blitz"]
[Site "Chess.com"]
[Date "2020.08.25"]
[Round "6"]
[White "StellarChessPro"]
[Black "giantslayer83"]
[Result "1-0"]
[WhiteElo "2501"]
[BlackElo "2697"]
[TimeControl "180+1"]
[EndTime "11:06:42 PDT"]
[Termination "StellarChessPro won by resignation"]

1. b3 {[%clk 0:03:00.9]} 1... e5 {[%clk 0:02:59.1]} 2. Bb2 {[%clk 0:03:01.2]}
2... Nc6 {[%clk 0:02:59.4]} 3. e3 {[%clk 0:03:01.6]} 3... Nf6 {[%clk 0:02:59.2]}
4. Bb5 {[%clk 0:03:02]} 4... Bd6 {[%clk 0:02:59.7]} 5. Na3 {[%clk 0:03:02.6]}
5... Na5 {[%clk 0:02:57.5]} 6. Nc4 {[%clk 0:03:02.9]} 6... Nxc4 {[%clk
0:02:56.9]} 7. Bxc4 {[%clk 0:03:03.8]} 7... c6 {[%clk 0:02:56.2]} 8. d4 {[%clk
0:03:03.9]} 8... e4 {[%clk 0:02:55.6]} 9. f3 {[%clk 0:03:03.2]} 9... Bb4+ {[%clk
0:02:45.9]} 10. c3 {[%clk 0:03:01.6]} 10... Ba5 {[%clk 0:02:46.3]} 11. fxe4
{[%clk 0:02:50.7]} 11... Nxe4 {[%clk 0:02:47.2]} 12. Qh5 {[%clk 0:02:46.4]}
12... d5 {[%clk 0:02:46.3]} 13. Bd3 {[%clk 0:02:41.2]} 13... Nxc3 {[%clk
0:02:45.5]} 14. Nf3 {[%clk 0:02:30.8]} 14... Ne4+ {[%clk 0:02:41.5]} 15. Ke2
{[%clk 0:02:29.4]} 15... Nf6 {[%clk 0:01:57.9]} 16. Qh4 {[%clk 0:02:23.3]} 16...
O-O {[%clk 0:01:53.1]} 17. Ne5 {[%clk 0:02:22.5]} 17... h6 {[%clk 0:01:44.8]}
18. Raf1 {[%clk 0:02:21.4]} 18... Ng4 {[%clk 0:01:43.8]} 19. Qg3 {[%clk
0:02:14.6]} 19... Nxe5 {[%clk 0:01:36.7]} 20. dxe5 {[%clk 0:02:15.5]} 20... Be6
{[%clk 0:01:34.2]} 21. Rf6 {[%clk 0:02:13.6]} 21... Bc7 {[%clk 0:01:01.5]} 22.
Rxh6 {[%clk 0:01:57.9]} 22... Re8 {[%clk 0:00:59.7]} 23. Rf1 {[%clk 0:01:42.3]}
23... Qd7 {[%clk 0:00:48.7]} 24. Rh8+ {[%clk 0:01:17.1]} 24... Kxh8 {[%clk
0:00:43.4]} 25. Qh4+ {[%clk 0:01:17.5]} 25... Kg8 {[%clk 0:00:42.4]} 26. Qh7+
{[%clk 0:01:17.9]} 26... Kf8 {[%clk 0:00:36.8]} 27. Ba3+ {[%clk 0:01:18.3]}
27... c5 {[%clk 0:00:31.7]} 28. Bxc5+ {[%clk 0:01:18.1]} 1-0

[Event "*** SCC Grand Prix: Titled Tuesday Blitz"]
[Site "Chess.com"]
[Date "2020.08.25"]
[Round "6"]
[White "Dannyyi"]
[Black "MichailovM"]
[Result "1-0"]
[WhiteElo "2387"]
[BlackElo "2465"]
[TimeControl "180+1"]
[EndTime "11:06:44 PDT"]
[Termination "Dannyyi won by resignation"]

1. e4 {[%clk 0:03:00.9]} 1... c5 {[%clk 0:02:59.6]} 2. a3 {[%clk 0:02:58.1]}
2... e6 {[%clk 0:02:58.8]} 3. Nf3 {[%clk 0:02:52.6]} 3... d5 {[%clk 0:02:58.3]}
4. exd5 {[%clk 0:02:51.1]} 4... exd5 {[%clk 0:02:59.2]} 5. d4 {[%clk 0:02:51.7]}
5... Nc6 {[%clk 0:02:58.2]} 6. Bb5 {[%clk 0:02:46.4]} 6... Bd6 {[%clk
0:02:55.4]} 7. O-O {[%clk 0:02:44.2]} 7... Ne7 {[%clk 0:02:55.6]} 8. dxc5 {[%clk
0:02:32.7]} 8... Bxc5 {[%clk 0:02:54.7]} 9. b4 {[%clk 0:02:31.5]} 9... Bb6
{[%clk 0:02:51.4]} 10. Bb2 {[%clk 0:02:31.8]} 10... O-O {[%clk 0:02:51.3]} 11.
Nbd2 {[%clk 0:02:25.1]} 11... Bg4 {[%clk 0:02:48.4]} 12. Bd3 {[%clk 0:02:16.4]}
12... f6 {[%clk 0:02:41.5]} 13. h3 {[%clk 0:01:59.6]} 13... Bf5 {[%clk
0:02:32.6]} 14. Bxf5 {[%clk 0:01:55.9]} 14... Nxf5 {[%clk 0:02:33.5]} 15. Nb3
{[%clk 0:01:51.4]} 15... d4 {[%clk 0:02:26.5]} 16. Qd3 {[%clk 0:01:34.8]} 16...
Qd5 {[%clk 0:02:25]} 17. c4 {[%clk 0:01:30]} 17... Qd7 {[%clk 0:02:24.7]} 18. c5
{[%clk 0:01:28.7]} 18... Bc7 {[%clk 0:02:24.5]} 19. Nbxd4 {[%clk 0:01:25.7]}
19... Nfxd4 {[%clk 0:02:19.3]} 20. Nxd4 {[%clk 0:01:26.6]} 20... Kh8 {[%clk
0:02:10.7]} 21. Rad1 {[%clk 0:01:20.8]} 21... Rad8 {[%clk 0:02:10.3]} 22. Qc4
{[%clk 0:01:11.6]} 22... Ne5 {[%clk 0:02:00]} 23. Qe6 {[%clk 0:01:05.1]} 23...
Qa4 {[%clk 0:01:55.6]} 24. Qb3 {[%clk 0:00:44.8]} 24... Qxb3 {[%clk 0:01:50.6]}
25. Nxb3 {[%clk 0:00:45.7]} 25... Nc4 {[%clk 0:01:49.8]} 26. Bc1 {[%clk
0:00:42.9]} 26... Be5 {[%clk 0:01:37.8]} 27. Nd2 {[%clk 0:00:29.1]} 27... Nb2
{[%clk 0:01:32]} 28. Bxb2 {[%clk 0:00:26.1]} 28... Bxb2 {[%clk 0:01:32.9]} 29.
Nc4 {[%clk 0:00:26.6]} 29... Bc3 {[%clk 0:01:31.4]} 30. Nd6 {[%clk 0:00:23]} 1-0

[Event "*** SCC Grand Prix: Titled Tuesday Blitz"]
[Site "Chess.com"]
[Date "2020.08.25"]
[Round "6"]
[White "JoliyRoger"]
[Black "beto-betun"]
[Result "1-0"]
[WhiteElo "2372"]
[BlackElo "2110"]
[TimeControl "180+1"]
[EndTime "11:06:52 PDT"]
[Termination "JoliyRoger won on time"]

1. Nf3 {[%clk 0:03:00.9]} 1... Nf6 {[%clk 0:02:58.9]} 2. c4 {[%clk 0:03:00.9]}
2... g6 {[%clk 0:02:57.2]} 3. Nc3 {[%clk 0:03:01.2]} 3... Bg7 {[%clk 0:02:57.5]}
4. e4 {[%clk 0:03:01.8]} 4... d6 {[%clk 0:02:57.4]} 5. d4 {[%clk 0:03:02.3]}
5... O-O {[%clk 0:02:57]} 6. h3 {[%clk 0:03:02.8]} 6... e5 {[%clk 0:02:42.1]} 7.
d5 {[%clk 0:03:02.5]} 7... a5 {[%clk 0:02:38.1]} 8. Bg5 {[%clk 0:03:02.6]} 8...
Nbd7 {[%clk 0:02:37.7]} 9. Be2 {[%clk 0:03:00.2]} 9... h6 {[%clk 0:02:36.7]} 10.
Be3 {[%clk 0:02:59.4]} 10... b6 {[%clk 0:02:31.9]} 11. g4 {[%clk 0:02:56.3]}
11... Nc5 {[%clk 0:02:30.2]} 12. Nd2 {[%clk 0:02:53.1]} 12... Bd7 {[%clk
0:01:48.6]} 13. h4 {[%clk 0:02:52.1]} 13... Qc8 {[%clk 0:01:43.5]} 14. Rg1
{[%clk 0:02:51]} 14... Nh7 {[%clk 0:01:35.7]} 15. h5 {[%clk 0:02:50.3]} 15... g5
{[%clk 0:01:35]} 16. f3 {[%clk 0:02:50.4]} 16... Bf6 {[%clk 0:01:10.1]} 17. Kf2
{[%clk 0:02:48]} 17... Kg7 {[%clk 0:01:09.8]} 18. Qc2 {[%clk 0:02:36.9]} 18...
Re8 {[%clk 0:01:09.3]} 19. Rgb1 {[%clk 0:02:36.7]} 19... Nf8 {[%clk 0:01:02.8]}
20. b3 {[%clk 0:02:37.1]} 20... Qd8 {[%clk 0:00:50.6]} 21. a3 {[%clk 0:02:36.2]}
21... Qe7 {[%clk 0:00:49.2]} 22. b4 {[%clk 0:02:29.3]} 22... Nb7 {[%clk
0:00:48.5]} 23. Nb3 {[%clk 0:02:25.3]} 23... Reb8 {[%clk 0:00:42.7]} 24. Ra2
{[%clk 0:02:21.3]} 24... Qd8 {[%clk 0:00:29.3]} 25. Qd2 {[%clk 0:02:18.8]} 25...
Nh7 {[%clk 0:00:24.8]} 26. Rab2 {[%clk 0:02:17.4]} 26... a4 {[%clk 0:00:20.3]}
27. Nc1 {[%clk 0:02:15.1]} 27... Qe8 {[%clk 0:00:20.6]} 28. Nd3 {[%clk 0:02:14]}
28... Nf8 {[%clk 0:00:17.9]} 29. c5 {[%clk 0:02:08.3]} 29... bxc5 {[%clk
0:00:17.5]} 30. bxc5 {[%clk 0:02:08.6]} 30... dxc5 {[%clk 0:00:15.2]} 31. Rxb7
{[%clk 0:02:06.6]} 31... Rxb7 {[%clk 0:00:15]} 32. Rxb7 {[%clk 0:02:06.9]} 32...
Qc8 {[%clk 0:00:07.6]} 33. Nxc5 {[%clk 0:02:02.9]} 33... Be7 {[%clk 0:00:04.2]}
34. Qb2 {[%clk 0:01:58.7]} 34... Bd6 {[%clk 0:00:02.2]} 35. Nd3 {[%clk
0:01:44.3]} 1-0

[Event "*** SCC Grand Prix: Titled Tuesday Blitz"]
[Site "Chess.com"]
[Date "2020.08.25"]
[Round "6"]
[White "Semen_Khanin"]
[Black "Onegust"]
[Result "1-0"]
[WhiteElo "2778"]
[BlackElo "2571"]
[TimeControl "180+1"]
[EndTime "11:06:53 PDT"]
[Termination "Semen_Khanin won by resignation"]

1. e4 {[%clk 0:03:00.9]} 1... c5 {[%clk 0:03:00.1]} 2. Nf3 {[%clk 0:03:00.6]}
2... d6 {[%clk 0:03:00.6]} 3. d4 {[%clk 0:03:00.7]} 3... cxd4 {[%clk 0:03:01.5]}
4. Nxd4 {[%clk 0:03:01.5]} 4... Nf6 {[%clk 0:03:02]} 5. Nc3 {[%clk 0:03:02.1]}
5... a6 {[%clk 0:03:02.5]} 6. f3 {[%clk 0:03:02.8]} 6... e5 {[%clk 0:03:01.8]}
7. Nb3 {[%clk 0:03:03.5]} 7... Be7 {[%clk 0:03:02.3]} 8. Be3 {[%clk 0:03:03.6]}
8... Be6 {[%clk 0:03:02.8]} 9. Qd2 {[%clk 0:03:03.3]} 9... h5 {[%clk 0:03:02.3]}
10. Nd5 {[%clk 0:03:02.6]} 10... Bxd5 {[%clk 0:03:00.9]} 11. exd5 {[%clk
0:03:03.2]} 11... Nbd7 {[%clk 0:03:01.8]} 12. Be2 {[%clk 0:03:03.3]} 12... O-O
{[%clk 0:03:00.6]} 13. c4 {[%clk 0:03:01.6]} 13... a5 {[%clk 0:02:35.6]} 14. Rc1
{[%clk 0:02:50.3]} 14... a4 {[%clk 0:02:34.6]} 15. Na1 {[%clk 0:02:50.5]} 15...
Qc8 {[%clk 0:01:54.5]} 16. O-O {[%clk 0:02:48.9]} 16... Bd8 {[%clk 0:01:55]} 17.
Nc2 {[%clk 0:02:43.7]} 17... Bb6 {[%clk 0:01:51.4]} 18. Na3 {[%clk 0:02:42.7]}
18... Bxe3+ {[%clk 0:01:33.8]} 19. Qxe3 {[%clk 0:02:42.3]} 19... Nc5 {[%clk
0:01:33.3]} 20. Nb5 {[%clk 0:02:41.5]} 20... Qd7 {[%clk 0:01:29.7]} 21. b4
{[%clk 0:02:18.5]} 21... axb3 {[%clk 0:01:18.4]} 22. axb3 {[%clk 0:02:18.2]}
22... Ra2 {[%clk 0:00:45.9]} 23. b4 {[%clk 0:02:16]} 23... Na6 {[%clk
0:00:42.4]} 24. Rb1 {[%clk 0:02:16.1]} 24... Rc8 {[%clk 0:00:34.1]} 25. Rfe1
{[%clk 0:02:10.1]} 25... Rc2 {[%clk 0:00:19.7]} 26. Qb3 {[%clk 0:02:03.7]} 26...
Rxe2 {[%clk 0:00:10.5]} 27. Rxe2 {[%clk 0:02:03.2]} 27... Nxd5 {[%clk
0:00:11.4]} 28. Rd2 {[%clk 0:01:58.3]} 28... Ndxb4 {[%clk 0:00:08.7]} 29. Nxd6
{[%clk 0:01:55.6]} 29... Rc6 {[%clk 0:00:06.9]} 30. Rbd1 {[%clk 0:01:55.1]}
30... Qe6 {[%clk 0:00:05.7]} 31. Qe3 {[%clk 0:01:54]} 31... Kh8 {[%clk
0:00:02.3]} 32. Ne4 {[%clk 0:01:52.1]} 32... Qg6 {[%clk 0:00:02.4]} 33. Rd8+
{[%clk 0:01:51.5]} 33... Kh7 {[%clk 0:00:03]} 34. Ng5+ {[%clk 0:01:51.8]} 34...
Qxg5 {[%clk 0:00:03.3]} 35. Qxg5 {[%clk 0:01:51.6]} 35... Rg6 {[%clk 0:00:04.2]}
1-0

[Event "*** SCC Grand Prix: Titled Tuesday Blitz"]
[Site "Chess.com"]
[Date "2020.08.25"]
[Round "6"]
[White "suyu28"]
[Black "Alexander_Moskalenko"]
[Result "0-1"]
[WhiteElo "2633"]
[BlackElo "2779"]
[TimeControl "180+1"]
[EndTime "11:06:57 PDT"]
[Termination "Alexander_Moskalenko won by resignation"]

1. d4 {[%clk 0:03:00.9]} 1... d5 {[%clk 0:03:00]} 2. c4 {[%clk 0:02:59.8]} 2...
c6 {[%clk 0:03:00.4]} 3. Nf3 {[%clk 0:02:59.6]} 3... Nf6 {[%clk 0:03:00.1]} 4.
e3 {[%clk 0:03:00]} 4... Bf5 {[%clk 0:02:59.6]} 5. Nc3 {[%clk 0:02:59]} 5... e6
{[%clk 0:02:59.7]} 6. Bd3 {[%clk 0:02:59]} 6... Bxd3 {[%clk 0:03:00.2]} 7. Qxd3
{[%clk 0:02:59.9]} 7... Nbd7 {[%clk 0:03:00.6]} 8. O-O {[%clk 0:03:00.2]} 8...
Bb4 {[%clk 0:03:00.7]} 9. Bd2 {[%clk 0:03:00.2]} 9... a5 {[%clk 0:03:01.2]} 10.
b3 {[%clk 0:02:53.4]} 10... O-O {[%clk 0:02:59.3]} 11. a3 {[%clk 0:02:53.9]}
11... Be7 {[%clk 0:02:59.3]} 12. e4 {[%clk 0:02:53.6]} 12... Nc5 {[%clk
0:02:58.4]} 13. dxc5 {[%clk 0:02:41]} 13... dxe4 {[%clk 0:02:58.5]} 14. Qxd8
{[%clk 0:02:40.8]} 14... Rfxd8 {[%clk 0:02:58.8]} 15. Be3 {[%clk 0:02:26.2]}
15... exf3 {[%clk 0:02:57.6]} 16. gxf3 {[%clk 0:02:27.1]} 16... Nd7 {[%clk
0:02:45.6]} 17. Na4 {[%clk 0:02:23.1]} 17... Ne5 {[%clk 0:02:37.6]} 18. f4
{[%clk 0:02:22.6]} 18... Nf3+ {[%clk 0:02:34.5]} 19. Kg2 {[%clk 0:02:17]} 19...
Nh4+ {[%clk 0:02:34.7]} 20. Kh3 {[%clk 0:02:14.1]} 20... Rd3 {[%clk 0:02:33.3]}
21. Rab1 {[%clk 0:02:03.7]} 21... Nf5 {[%clk 0:02:32.9]} 22. Rfe1 {[%clk
0:02:03.8]} 22... h5 {[%clk 0:02:23.5]} 23. Kg2 {[%clk 0:02:03.6]} 23... Kh7
{[%clk 0:02:12.3]} 24. Kf1 {[%clk 0:02:01.2]} 24... Rad8 {[%clk 0:02:09.4]} 25.
Ke2 {[%clk 0:01:52.3]} 25... Nxe3 {[%clk 0:02:08.7]} 26. fxe3 {[%clk 0:01:52.6]}
26... Rd2+ {[%clk 0:02:09.3]} 27. Kf3 {[%clk 0:01:53]} 27... Rxh2 {[%clk
0:02:08.3]} 28. Rh1 {[%clk 0:01:53]} 28... Rxh1 {[%clk 0:02:05.8]} 29. Rxh1
{[%clk 0:01:53.9]} 29... Rd3 {[%clk 0:02:02.5]} 30. Rb1 {[%clk 0:01:44.7]} 30...
h4 {[%clk 0:02:01.9]} 31. Ke2 {[%clk 0:01:44.2]} 31... Rd7 {[%clk 0:01:59.7]}
32. b4 {[%clk 0:01:44.3]} 32... axb4 {[%clk 0:01:59.6]} 33. axb4 {[%clk
0:01:44.5]} 33... g5 {[%clk 0:01:53.2]} 34. fxg5 {[%clk 0:01:41.7]} 34... Bxg5
{[%clk 0:01:54.1]} 35. Nc3 {[%clk 0:01:33.6]} 35... f5 {[%clk 0:01:53.2]} 36.
Rg1 {[%clk 0:01:27.7]} 36... Kg6 {[%clk 0:01:51.4]} 37. Nd1 {[%clk 0:01:21.4]}
37... Kf6 {[%clk 0:01:40.7]} 38. Nf2 {[%clk 0:01:20.9]} 38... Rd8 {[%clk
0:01:39.2]} 39. Nh3 {[%clk 0:01:17.5]} 39... Bh6 {[%clk 0:01:39.4]} 40. b5
{[%clk 0:00:56.5]} 40... Ra8 {[%clk 0:01:38.1]} 41. Kf3 {[%clk 0:00:53.5]} 41...
Bxe3 {[%clk 0:01:36.7]} 42. Ra1 {[%clk 0:00:30.4]} 42... Rxa1 {[%clk 0:01:36]}
0-1

[Event "*** SCC Grand Prix: Titled Tuesday Blitz"]
[Site "Chess.com"]
[Date "2020.08.25"]
[Round "6"]
[White "Zarinur"]
[Black "Logman74"]
[Result "0-1"]
[WhiteElo "2137"]
[BlackElo "2393"]
[TimeControl "180+1"]
[EndTime "11:07:01 PDT"]
[Termination "Logman74 won on time"]

1. e4 {[%clk 0:03:00.9]} 1... c5 {[%clk 0:02:59]} 2. Nf3 {[%clk 0:03:00.7]} 2...
d6 {[%clk 0:02:57.6]} 3. Bb5+ {[%clk 0:02:59.6]} 3... Bd7 {[%clk 0:02:55.8]} 4.
Bxd7+ {[%clk 0:02:58.2]} 4... Qxd7 {[%clk 0:02:56.3]} 5. O-O {[%clk 0:02:57.3]}
5... Nc6 {[%clk 0:02:56.8]} 6. c3 {[%clk 0:02:54.7]} 6... Nf6 {[%clk 0:02:57.3]}
7. Re1 {[%clk 0:02:54.9]} 7... g6 {[%clk 0:02:56.8]} 8. d4 {[%clk 0:02:54.5]}
8... cxd4 {[%clk 0:02:56.8]} 9. cxd4 {[%clk 0:02:54]} 9... d5 {[%clk 0:02:57.3]}
10. e5 {[%clk 0:02:51.1]} 10... Ne4 {[%clk 0:02:57.4]} 11. Nbd2 {[%clk
0:02:45.1]} 11... Nxd2 {[%clk 0:02:56.1]} 12. Bxd2 {[%clk 0:02:46]} 12... Bg7
{[%clk 0:02:56.4]} 13. Bf4 {[%clk 0:02:17]} 13... O-O {[%clk 0:02:54.7]} 14. Qd2
{[%clk 0:02:15.6]} 14... e6 {[%clk 0:02:54.9]} 15. Bh6 {[%clk 0:02:10.8]} 15...
Rac8 {[%clk 0:02:55.2]} 16. Qf4 {[%clk 0:01:56.8]} 16... Qe7 {[%clk 0:02:54.1]}
17. Bg5 {[%clk 0:01:38.2]} 17... Qb4 {[%clk 0:02:52.5]} 18. Rab1 {[%clk
0:01:16.4]} 18... Na5 {[%clk 0:02:37]} 19. Bf6 {[%clk 0:01:02.2]} 19... Rc2
{[%clk 0:02:30.3]} 20. Qh4 {[%clk 0:00:36.5]} 20... Nc6 {[%clk 0:02:23.4]} 21.
Ng5 {[%clk 0:00:28.6]} 21... h5 {[%clk 0:02:21.9]} 22. Rbd1 {[%clk 0:00:19.3]}
22... Rd2 {[%clk 0:02:12.3]} 23. g4 {[%clk 0:00:10.9]} 23... Qxd4 {[%clk
0:02:07.1]} 24. Rxd2 {[%clk 0:00:07.3]} 24... Qxd2 {[%clk 0:02:04.8]} 25. Rf1
{[%clk 0:00:06.5]} 25... Qf4 {[%clk 0:02:04.1]} 26. Nh3 {[%clk 0:00:03.8]} 26...
Qxg4+ {[%clk 0:02:03.5]} 27. Qxg4 {[%clk 0:00:03.5]} 27... hxg4 {[%clk 0:02:04]}
28. Nf4 {[%clk 0:00:02.9]} 28... Nxe5 {[%clk 0:02:04.1]} 29. Bxg7 {[%clk
0:00:02.9]} 29... Kxg7 {[%clk 0:02:04.1]} 30. Kg2 {[%clk 0:00:03.8]} 30... d4
{[%clk 0:02:03.1]} 31. Kg3 {[%clk 0:00:03.8]} 31... Rd8 {[%clk 0:02:01]} 32. Rd1
{[%clk 0:00:04.1]} 32... d3 {[%clk 0:02:00.9]} 33. Ng2 {[%clk 0:00:02.2]} 33...
d2 {[%clk 0:02:00.2]} 34. Ne3 {[%clk 0:00:01.8]} 34... f5 {[%clk 0:01:58.1]} 35.
Kf4 {[%clk 0:00:01.3]} 35... Nd3+ {[%clk 0:01:56.3]} 36. Kg5 {[%clk 0:00:01.6]}
36... Nxf2 {[%clk 0:01:55.4]} 37. Rf1 {[%clk 0:00:01.4]} 37... Ne4+ {[%clk
0:01:52.9]} 0-1

[Event "*** SCC Grand Prix: Titled Tuesday Blitz"]
[Site "Chess.com"]
[Date "2020.08.25"]
[Round "6"]
[White "Ausbildung"]
[Black "sertalzin"]
[Result "1-0"]
[WhiteElo "2251"]
[BlackElo "1867"]
[TimeControl "180+1"]
[EndTime "11:07:05 PDT"]
[Termination "Ausbildung won on time"]

1. e4 {[%clk 0:03:00.9]} 1... c5 {[%clk 0:02:58.2]} 2. c4 {[%clk 0:02:59.7]}
2... Nc6 {[%clk 0:02:56]} 3. Nc3 {[%clk 0:02:58.7]} 3... e6 {[%clk 0:02:55.8]}
4. Nf3 {[%clk 0:02:54.2]} 4... Nf6 {[%clk 0:02:55.2]} 5. Be2 {[%clk 0:02:51.2]}
5... d5 {[%clk 0:02:54.5]} 6. exd5 {[%clk 0:02:49.4]} 6... exd5 {[%clk
0:02:53.8]} 7. cxd5 {[%clk 0:02:48.6]} 7... Nxd5 {[%clk 0:02:53]} 8. d4 {[%clk
0:02:48.4]} 8... cxd4 {[%clk 0:02:40.8]} 9. Nxd4 {[%clk 0:02:47.5]} 9... Nxc3
{[%clk 0:02:36.8]} 10. bxc3 {[%clk 0:02:45.9]} 10... Nxd4 {[%clk 0:02:36.3]} 11.
cxd4 {[%clk 0:02:41.7]} 11... Bb4+ {[%clk 0:02:35.7]} 12. Bd2 {[%clk 0:02:29.7]}
12... Bxd2+ {[%clk 0:02:28.4]} 13. Qxd2 {[%clk 0:02:28.7]} 13... O-O {[%clk
0:02:25.4]} 14. O-O {[%clk 0:02:27.6]} 14... Be6 {[%clk 0:02:15.5]} 15. Rab1
{[%clk 0:02:20.6]} 15... Bd5 {[%clk 0:02:13.9]} 16. Rfd1 {[%clk 0:02:09.4]}
16... Qd7 {[%clk 0:02:13.6]} 17. Qf4 {[%clk 0:02:00.6]} 17... Bxa2 {[%clk
0:01:52.3]} 18. Ra1 {[%clk 0:01:45.5]} 18... Bd5 {[%clk 0:01:51.1]} 19. Ra5
{[%clk 0:01:43.3]} 19... b6 {[%clk 0:01:44.4]} 20. Ra3 {[%clk 0:01:41.7]} 20...
Rfd8 {[%clk 0:01:39.3]} 21. Rg3 {[%clk 0:01:39.9]} 21... g6 {[%clk 0:01:26.9]}
22. h4 {[%clk 0:01:39.1]} 22... Qd6 {[%clk 0:01:17.1]} 23. Qg5 {[%clk
0:01:36.6]} 23... Rac8 {[%clk 0:00:46.3]} 24. h5 {[%clk 0:01:33.4]} 24... Rc2
{[%clk 0:00:45.9]} 25. Bd3 {[%clk 0:01:29.1]} 25... Rc7 {[%clk 0:00:37.9]} 26.
Qh6 {[%clk 0:01:28.1]} 26... Qb4 {[%clk 0:00:07]} 27. hxg6 {[%clk 0:01:20.5]}
27... fxg6 {[%clk 0:00:05.2]} 28. Bxg6 {[%clk 0:01:18.6]} 1-0

[Event "*** SCC Grand Prix: Titled Tuesday Blitz"]
[Site "Chess.com"]
[Date "2020.08.25"]
[Round "6"]
[White "ZarinaShafigullina"]
[Black "SzMM19"]
[Result "1/2-1/2"]
[WhiteElo "2312"]
[BlackElo "2532"]
[TimeControl "180+1"]
[EndTime "11:07:06 PDT"]
[Termination "Game drawn by repetition"]

1. d4 {[%clk 0:03:00.9]} 1... Nf6 {[%clk 0:02:59.7]} 2. Nf3 {[%clk 0:03:01.8]}
2... e6 {[%clk 0:03:00]} 3. g3 {[%clk 0:03:02]} 3... b6 {[%clk 0:02:59.9]} 4.
Bg2 {[%clk 0:03:02.8]} 4... Bb7 {[%clk 0:03:00.7]} 5. O-O {[%clk 0:03:03.4]}
5... Be7 {[%clk 0:03:01.3]} 6. c4 {[%clk 0:03:04.1]} 6... O-O {[%clk 0:03:01.5]}
7. Nc3 {[%clk 0:03:04.8]} 7... Ne4 {[%clk 0:03:02]} 8. Bd2 {[%clk 0:03:05.3]}
8... Nxd2 {[%clk 0:03:01.7]} 9. Qxd2 {[%clk 0:03:05.5]} 9... d6 {[%clk
0:03:01.9]} 10. d5 {[%clk 0:03:05.9]} 10... e5 {[%clk 0:03:01.2]} 11. e4 {[%clk
0:03:05.7]} 11... Bc8 {[%clk 0:03:01.3]} 12. Ne1 {[%clk 0:03:05.9]} 12... a5
{[%clk 0:03:01.4]} 13. Nd3 {[%clk 0:03:05.7]} 13... f5 {[%clk 0:02:56.1]} 14. f4
{[%clk 0:03:05.7]} 14... exf4 {[%clk 0:02:52.8]} 15. Nxf4 {[%clk 0:03:05.4]}
15... Bg5 {[%clk 0:02:49.3]} 16. exf5 {[%clk 0:03:04.2]} 16... Bxf5 {[%clk
0:02:48.7]} 17. Ne4 {[%clk 0:03:03.8]} 17... Bxe4 {[%clk 0:02:39.4]} 18. Bxe4
{[%clk 0:03:03.4]} 18... Bxf4 {[%clk 0:02:27.2]} 19. Rxf4 {[%clk 0:03:02.7]}
19... Rxf4 {[%clk 0:02:27.6]} 20. Qxf4 {[%clk 0:03:02.6]} 20... Nd7 {[%clk
0:02:28.2]} 21. Bf5 {[%clk 0:02:53.7]} 21... Nf6 {[%clk 0:02:27.5]} 22. Be6+
{[%clk 0:02:53.5]} 22... Kh8 {[%clk 0:02:27.4]} 23. g4 {[%clk 0:02:53.6]} 23...
h6 {[%clk 0:02:23.2]} 24. h4 {[%clk 0:02:52.8]} 24... Nh7 {[%clk 0:02:21.9]} 25.
Qf2 {[%clk 0:02:42.8]} 25... Qe7 {[%clk 0:02:15.8]} 26. Re1 {[%clk 0:02:42]}
26... Rf8 {[%clk 0:02:14.9]} 27. Qg3 {[%clk 0:02:41.9]} 27... Qf6 {[%clk
0:02:12.6]} 28. b3 {[%clk 0:02:41.6]} 28... Qd4+ {[%clk 0:02:03.4]} 29. Kh1
{[%clk 0:02:38.6]} 29... a4 {[%clk 0:01:59]} 30. Bf5 {[%clk 0:02:32.6]} 30...
axb3 {[%clk 0:01:50.9]} 31. axb3 {[%clk 0:02:32.1]} 31... Nf6 {[%clk 0:01:46.1]}
32. Qe3 {[%clk 0:02:15.1]} 32... Qxe3 {[%clk 0:01:32]} 33. Rxe3 {[%clk 0:02:14]}
33... h5 {[%clk 0:01:32.9]} 34. g5 {[%clk 0:01:04.6]} 34... Nxd5 {[%clk
0:01:20.8]} 35. cxd5 {[%clk 0:01:04.7]} 35... Rxf5 {[%clk 0:01:21.3]} 36. g6
{[%clk 0:01:05.4]} 36... Kg8 {[%clk 0:01:21.8]} 37. Re8+ {[%clk 0:00:53.4]}
37... Rf8 {[%clk 0:01:21.7]} 38. Re7 {[%clk 0:00:53.9]} 38... Rf6 {[%clk
0:01:19.8]} 39. Re8+ {[%clk 0:00:53.3]} 39... Rf8 {[%clk 0:01:20.3]} 40. Re7
{[%clk 0:00:53.2]} 40... Rf6 {[%clk 0:01:02.7]} 41. Re8+ {[%clk 0:00:49.1]}
41... Rf8 {[%clk 0:01:01.6]} 1/2-1/2